bitfinex/quotes_ETHUSD_20230117
["timestamp","ask_amount","ask_price","bid_price","bid_amount"]
[1673980667323,10.15846032,1588.5,1588.0,3.7144718]
[1673980667691,10.15846032,1588.5,1588.0,4.7144718]
[1673980667901,10.15846032,1588.5,1588.0,3.7144718]
[1673980668375,10.15846032,1588.5,1588.0,4.7144718]
[1673980668582,10.15846032,1588.5,1588.1,0.37144718]
[1673980670210,13.27508439,1588.5,1587.9,0.4725]
[1673980670693,10.15846032,1588.5,1587.9,1.4725]
[1673980671016,16.45402032,1588.5,1587.9,2.38817376]
[1673980671158,16.45402032,1588.5,1588.0,1.56162567]
[1673980671363,16.45402032,1588.5,1587.9,1.5385]
[1673980671579,16.45402032,1588.5,1588.0,0.15385]
[1673980672048,16.45402032,1588.5,1588.1,0.4724]
[1673980673997,16.45402032,1588.5,1588.0,0.4724]
[1673980673998,19.57064439,1588.5,1588.0,0.4724]
[1673980674241,19.57064439,1588.5,1587.9,0.4725]
[1673980674523,25.18487,1588.3,1587.9,0.4725]
[1673980674838,25.25087,1588.3,1587.9,0.88853797]
[1673980675263,25.25087,1588.3,1587.9,1.88853797]
[1673980675463,18.95464,1588.3,1587.9,1.88853797]
[1673980675674,12.65841,1588.3,1587.9,12.03412698]
[1673980675889,6.29566,1588.4,1588.3,3.265262]
[1673980676218,6.36164,1588.4,1588.3,3.5917882]
[1673980676454,18.95292,1588.4,1588.3,3.265262]
[1673980677380,22.06954407,1588.4,1588.3,3.265262]
[1673980679271,18.06990095,1588.4,1588.3,3.265262]
[1673980679532,18.08190095,1588.4,1588.3,3.265262]
[1673980680170,21.19852502,1588.4,1588.3,3.265262]
[1673980680361,23.94792752,1588.4,1588.3,3.265262]
[1673980682217,18.08190095,1588.4,1588.3,3.265262]
[1673980683309,21.19852502,1588.4,1588.3,3.265262]
[1673980683683,18.08190095,1588.4,1588.3,3.265262]
[1673980684226,16.41608811,1588.4,1588.3,3.265262]
[1673980684439,10.12044811,1588.4,1588.3,3.265262]
[1673980684688,6.29466,1588.7,1588.4,1.0]
[1673980684845,0.066,1588.7,1588.4,1.0]
[1673980685055,6.36024,1588.8,1588.4,7.76791]
[1673980685267,6.36024,1588.8,1588.5,0.4723]
[1673980685634,0.066,1588.8,1588.6,1.0]
[1673980685825,11.55859,1589.0,1588.6,7.29483]
[1673980686153,11.55859,1589.0,1588.6,0.066]
[1673980686154,17.85202,1589.0,1588.6,0.066]
[1673980686362,17.85202,1589.0,1588.5,9.23281066]
[1673980686578,17.85202,1589.0,1588.6,9.39776308]
[1673980686579,5.265,1589.0,1588.6,9.39776308]
[1673980686748,5.265,1589.0,1588.7,8.79497648]
[1673980686956,5.265,1589.0,1588.8,1.0]
[1673980687376,5.265,1589.0,1588.8,8.82379134]
[1673980687588,5.265,1589.0,1588.8,15.18384134]
[1673980687816,5.265,1589.0,1588.9,6.76586]
[1673980688045,5.265,1589.0,1588.9,9.02683013]
[1673980688206,5.265,1589.0,1588.9,9.55463013]
[1673980688627,5.265,1589.0,1588.9,9.55814319]
[1673980691159,0.066,1589.0,1588.9,21.47940061]
[1673980691369,6.82898,1589.6,1588.9,23.82140674]
[1673980691596,15.76478407,1589.6,1589.0,2.38214067]
[1673980691941,3.11662407,1589.5,1588.9,2.26448319]
[1673980692150,21.99259407,1589.4,1588.9,0.00351306]
[1673980692361,3.11662407,1589.3,1588.7,0.5382]
[1673980692580,21.99499407,1589.2,1588.6,1.38787376]
[1673980692729,0.066,1589.2,1588.7,2.4455851]
[1673980693101,6.29199,1589.4,1588.9,0.91567376]
[1673980693102,0.066,1589.4,1588.9,0.91567376]
[1673980693271,0.066,1589.7,1589.0,7.1342799]
[1673980693480,1.40601494,1590.0,1589.0,7.1342799]
[1673980693481,12.31111494,1590.0,1589.2,1.889]
[1673980693728,12.31111494,1590.0,1589.3,1.66338151]
[1673980693729,11.4429,1590.0,1589.3,1.66338151]
[1673980693886,12.37711494,1590.0,1589.3,0.6609]
[1673980694260,3.11662407,1589.9,1589.3,0.6609]
[1673980694455,3.11662407,1589.8,1589.2,0.4721]
[1673980694827,3.11662407,1589.8,1589.1,0.4721]
[1673980695042,0.066,1589.9,1589.2,1.48635523]
[1673980695298,3.11662407,1589.9,1589.0,1.5381]
[1673980695515,3.11662407,1589.8,1589.0,0.4721]
[1673980695705,3.42828648,1589.7,1589.0,0.4721]
[1673980695916,3.11662407,1589.6,1588.9,0.4722]
[1673980696087,3.11662407,1589.5,1588.9,0.4722]
[1673980696306,3.11662407,1589.5,1588.8,0.4722]
[1673980696511,3.11662407,1589.5,1588.8,0.83708738]
[1673980696512,3.60778648,1589.5,1588.8,0.83708738]
[1673980697247,3.11662407,1589.4,1588.8,0.4722]
[1673980697493,4.31412407,1589.3,1588.7,0.4722]
[1673980697834,0.538,1589.4,1588.7,2.79401155]
[1673980697996,0.472,1589.5,1588.8,2.00760116]
[1673980698212,3.58862407,1589.5,1588.8,2.00760116]
[1673980698434,3.58862407,1589.5,1588.9,0.00802075]
[1673980698827,3.11662407,1589.4,1588.9,0.00802075]
[1673980699041,3.42828648,1589.3,1588.9,0.00802075]
[1673980699297,3.58862407,1589.3,1588.6,0.4722]
[1673980699510,3.11662407,1589.3,1588.7,0.00802175]
[1673980699888,3.11662407,1589.3,1588.7,1.27202175]
[1673980700125,0.538,1589.4,1588.8,0.12720218]
[1673980700347,0.472,1589.4,1588.9,0.01835423]
[1673980700719,0.472,1589.5,1588.9,1.27835423]
[1673980701102,3.11662407,1589.5,1588.9,1.27835423]
[1673980701245,26.5353,1589.6,1588.9,1.27835423]
[1673980701459,32.33662031,1589.6,1589.0,0.12783542]
[1673980701698,6.11662407,1589.5,1588.9,0.01835423]
[1673980702028,4.36962407,1589.4,1588.9,0.01835423]
[1673980702244,4.36862407,1589.3,1588.9,0.01835423]
[1673980702431,3.55348648,1589.2,1588.7,0.0042658]
[1673980703236,3.11662407,1589.1,1588.7,0.0042658]
[1673980703441,3.11662407,1589.0,1588.7,0.0042658]
[1673980704076,0.066,1589.1,1588.7,0.0042658]
[1673980704339,3.11662407,1589.1,1588.7,0.0042658]
[1673980704705,3.11662407,1589.0,1588.7,0.0042658]
[1673980704912,4.36962407,1589.0,1588.7,0.0042658]
[1673980705141,4.81758648,1588.9,1588.7,0.0042658]
[1673980705385,3.11662407,1588.8,1588.7,0.0042658]
[1673980706540,1.33,1588.9,1588.7,0.0042658]
[1673980706758,16.9888,1589.1,1588.7,0.0042658]
[1673980706942,3.11662407,1589.0,1588.7,0.0042658]
[1673980707770,3.11662407,1588.9,1588.7,0.0042658]
[1673980708209,4.20274241,1589.0,1588.7,0.0042658]
[1673980708210,3.11662407,1588.8,1588.7,0.0042658]
[1673980708404,3.18262407,1588.9,1588.7,0.0042658]
[1673980708734,3.20274241,1589.0,1588.7,0.0042658]
[1673980709066,6.25336648,1589.0,1588.7,0.0042658]
[1673980709274,6.31936648,1589.0,1588.7,0.0042658]
[1673980709641,3.74856072,1588.9,1588.7,0.0042658]
[1673980709857,3.11662407,1588.8,1588.7,0.0042658]
[1673980713358,1.95293665,1588.9,1588.7,0.0042658]
[1673980713537,5.00356072,1588.9,1588.7,0.0042658]
[1673980713747,3.81456072,1588.9,1588.7,0.0042658]
[1673980713994,3.74856072,1588.9,1588.7,0.0042658]
[1673980714196,3.74856072,1588.9,1588.8,1.17946329]
[1673980715849,1.33,1589.0,1588.8,1.17946329]
[1673980716103,3.11662407,1589.0,1588.8,1.17946329]
[1673980716434,0.066,1589.1,1588.8,1.17946329]
[1673980716601,0.066,1589.2,1588.9,0.03084333]
[1673980716784,17.7373,1589.3,1588.9,0.03084333]
[1673980716785,14.8033,1589.3,1588.9,0.03084333]
[1673980716999,17.91992407,1589.3,1588.9,0.15187399]
[1673980717731,3.18262407,1589.3,1588.9,0.15187399]
[1673980717936,3.11662407,1589.3,1588.9,0.15187399]
[1673980718409,3.11662407,1589.3,1588.9,0.03084333]
[1673980720747,3.11662407,1589.2,1588.8,1.17946329]
[1673980720914,5.37562407,1589.1,1588.8,1.17946329]
[1673980721109,4.44162407,1589.1,1588.8,1.17946329]
[1673980721302,4.81978648,1589.1,1588.8,1.17946329]
[1673980721686,1.257,1588.9,1588.8,1.17946329]
[1673980721987,4.37362407,1588.9,1588.8,1.17946329]
[1673980723026,5.37362407,1588.9,1588.8,1.17946329]
[1673980723201,5.43962407,1588.9,1588.8,1.17946329]
[1673980723408,6.13079648,1588.9,1588.8,1.17946329]
[1673980724280,5.13079648,1588.9,1588.8,1.17946329]
[1673980728994,6.13079648,1588.9,1588.8,1.17946329]
[1673980729204,6.36079648,1588.9,1588.8,1.17946329]
[1673980729412,7.61679648,1588.9,1588.8,1.17946329]
[1673980729621,11.08899648,1588.9,1588.8,1.17946329]
[1673980730361,11.08899648,1588.9,1588.8,0.44229873]
[1673980730362,20.08927531,1588.9,1588.8,0.44229873]
[1673980730533,1.0,1588.8,1588.6,0.005675]
[1673980730706,5.85462407,1588.7,1588.6,0.005675]
[1673980730912,38.39287407,1588.7,1588.6,0.005675]
[1673980731107,40.86507407,1588.7,1588.6,0.005675]
[1673980731325,40.86507407,1588.7,1588.6,5e-06]
[1673980731581,46.2152798,1588.7,1588.6,5e-06]
[1673980734162,52.83233554,1588.7,1588.6,5e-06]
[1673980734373,59.48433554,1588.7,1588.6,5e-06]
[1673980735115,60.89839943,1588.7,1588.6,5e-06]
[1673980735667,54.50394943,1588.7,1588.6,5e-06]
[1673980735999,32.4762,1588.5,1588.3,3.265262]
[1673980736150,31.00216407,1588.4,1588.3,3.265262]
[1673980736362,31.06816407,1588.4,1588.3,3.265262]
[1673980738730,28.14520695,1588.4,1588.3,3.265262]
[1673980739044,23.33354407,1588.4,1588.3,3.265262]
[1673980740270,26.33354407,1588.4,1588.3,3.265262]
[1673980741888,6.36164,1588.4,1588.3,3.265262]
[1673980742037,0.066,1588.4,1588.3,3.265262]
[1673980742249,22.89018,1588.5,1588.3,3.265262]
[1673980742580,9.32224,1588.5,1588.3,3.6456282]
[1673980742789,9.32224,1588.5,1588.3,3.65634207]
[1673980744662,4.004,1588.5,1588.3,16.24838207]
[1673980744931,3.938,1588.5,1588.4,1.4723]
[1673980745111,3.938,1588.5,1588.4,3.25096821]
[1673980745308,2.9868,1588.5,1588.4,2.25096821]
[1673980746384,9.28204,1588.5,1588.4,0.4723]
[1673980746592,15.64328,1588.5,1588.4,0.4723]
[1673980747325,16.90728,1588.5,1588.4,0.4723]
[1673980748155,16.90728,1588.5,1588.3,3.265262]
[1673980748701,16.96690407,1588.4,1588.3,3.265262]
[1673980748895,23.32854407,1588.4,1588.3,3.265262]
[1673980754685,26.71600248,1588.4,1588.3,3.265262]
[1673980756556,26.71600248,1588.4,1588.1,0.066]
[1673980756767,3.11662407,1588.3,1588.0,0.0178942]
[1673980757014,9.41305407,1588.2,1588.0,0.0178942]
[1673980757345,3.18262407,1588.2,1588.0,0.0178942]
[1673980757489,3.11662407,1588.2,1588.0,0.0178942]
[1673980757700,9.41306407,1588.2,1588.0,0.0178942]
[1673980757909,9.47906407,1588.2,1588.0,0.0178942]
[1673980759009,7.81313804,1588.2,1588.0,0.0178942]
[1673980759222,1.51669804,1588.2,1588.0,0.0178942]
[1673980759445,1.45069804,1588.2,1588.0,1.57969924]
[1673980759751,1.45069804,1588.2,1588.0,0.93356796]
[1673980759959,1.45069804,1588.2,1588.1,1.56181349]
[1673980760132,1.45069804,1588.2,1588.0,0.0178942]
[1673980760343,1.45069804,1588.2,1588.0,1.57972143]
[1673980760539,7.74715804,1588.2,1588.0,0.0178942]
[1673980760751,7.81315804,1588.2,1588.0,0.0178942]
[1673980761229,6.87606686,1588.2,1588.0,2.4953866]
[1673980761376,6.87606686,1588.2,1588.1,1.56181864]
[1673980762065,6.87606686,1588.2,1588.0,0.0178942]
[1673980762464,0.57960686,1588.2,1588.0,0.0178942]
[1673980762632,0.51360686,1588.2,1588.0,1.57975241]
[1673980763010,0.066,1588.3,1588.0,7.97050359]
[1673980763220,0.066,1588.4,1588.1,1.56185326]
[1673980763440,3.11662407,1588.4,1588.1,14.15517326]
[1673980763582,3.11662407,1588.4,1588.2,1.56185326]
[1673980764143,3.0528,1588.5,1588.2,21.36676702]
[1673980764370,3.0528,1588.5,1588.3,14.7284167]
[1673980764371,2.9868,1588.5,1588.3,14.7284167]
[1673980764587,2.9868,1588.5,1588.3,14.7944167]
[1673980765472,2.9868,1588.5,1588.4,1.56158515]
[1673980765738,2.9868,1588.5,1588.4,15.15286515]
[1673980765900,2.9868,1588.5,1588.4,18.30516071]
[1673980766311,2.9868,1588.5,1588.4,17.30516071]
[1673980766765,2.9868,1588.5,1588.4,9.44793556]
[1673980766978,2.9868,1588.5,1588.4,7.92320925]
[1673980767149,2.9868,1588.5,1588.4,7.92322191]
[1673980767994,2.9868,1588.5,1588.4,1.62758191]
[1673980768205,6.10342407,1588.5,1588.3,18.96420387]
[1673980768419,12.46482407,1588.5,1588.3,0.066]
[1673980768683,12.46482407,1588.5,1588.2,7.27795376]
[1673980768898,12.46482407,1588.5,1588.3,1.56169355]
[1673980769255,18.76022407,1588.5,1588.3,1.56169355]
[1673980769727,18.76022407,1588.5,1588.2,0.91567376]
[1673980769942,12.46482407,1588.5,1588.2,3.47736443]
[1673980770095,3.0528,1588.5,1588.4,6.29564]
[1673980770305,2.9868,1588.5,1588.4,7.92333067]
[1673980770515,2.9868,1588.5,1588.4,1.62769067]
[1673980770763,2.9868,1588.5,1588.4,1.56169067]
[1673980771198,2.9868,1588.5,1588.4,7.85733067]
[1673980771416,2.9868,1588.5,1588.4,7.92333067]
[1673980772473,2.9868,1588.5,1588.4,16.36202711]
[1673980772784,2.9868,1588.5,1588.4,23.57334087]
[1673980772988,0.066,1588.7,1588.5,1.16110757]
[1673980773141,11.93162347,1589.1,1588.6,20.44624067]
[1673980773357,15.04824754,1589.1,1588.6,18.95055]
[1673980773710,14.57614754,1589.1,1588.8,18.88199]
[1673980773886,3.18262407,1589.1,1588.8,18.94799]
[1673980774091,3.11662407,1589.1,1588.8,18.94799]
[1673980775469,1.00562347,1589.2,1588.8,18.94799]
[1673980775680,0.93962347,1589.2,1588.8,18.94799]
[1673980775899,0.93962347,1589.2,1588.8,20.83979733]
[1673980776938,3.77868736,1589.3,1588.8,20.83979733]
[1673980777192,0.93962347,1589.2,1588.8,20.83979733]
[1673980777362,7.43331143,1589.3,1588.8,20.83979733]
[1673980777573,0.93962347,1589.1,1588.8,0.066]
[1673980777816,0.93962347,1589.1,1588.6,12.65547]
[1673980777817,1.418,1588.9,1588.6,12.65547]
[1673980777992,3.18262407,1589.0,1588.6,18.95011]
[1673980778246,3.11662407,1589.0,1588.6,18.95011]
[1673980778767,15.70316407,1589.0,1588.6,12.65531]
[1673980778929,18.21145082,1589.0,1588.6,12.65531]
[1673980779132,18.21145082,1589.0,1588.6,6.36064]
[1673980779814,11.91817082,1589.0,1588.6,12.65549]
[1673980779969,5.62491082,1589.0,1588.6,18.95034]
[1673980780599,3.18262407,1589.0,1588.6,18.95034]
[1673980780810,0.066,1589.1,1588.6,18.95034]
[1673980781023,0.066,1589.1,1588.7,2.97917243]
[1673980781024,0.4721,1589.1,1588.7,2.97917243]
[1673980781345,32.38822389,1589.4,1588.7,2.97917243]
[1673980781346,10.745,1589.4,1589.1,0.4721]
[1673980781579,15.07728642,1589.4,1589.1,6.76479]
[1673980781776,15.07728642,1589.4,1589.1,6.83077]
[1673980781980,13.86162407,1589.4,1589.1,6.83077]
[1673980782193,9.47433407,1589.4,1589.1,6.83077]
[1673980782869,3.18262407,1589.4,1589.1,6.83077]
[1673980783060,3.11662407,1589.4,1589.1,6.83077]
[1673980783311,9.40830407,1589.4,1589.1,6.83077]
[1673980783455,9.47430407,1589.4,1589.1,6.83077]
[1673980783651,3.18262407,1589.4,1589.1,21.358217]
[1673980783861,3.11662407,1589.4,1589.1,21.358217]
[1673980784297,0.066,1589.5,1589.1,21.358217]
[1673980784515,10.7408,1589.6,1589.2,1.425]
[1673980784854,10.7408,1589.6,1589.3,18.87598]
[1673980785183,10.7408,1589.6,1589.3,20.972078]
[1673980785327,10.7408,1589.6,1589.3,6.35799]
[1673980785913,3.18262407,1589.6,1589.3,0.066]
[1673980786137,3.18262407,1589.6,1589.2,12.65066]
[1673980786138,3.11662407,1589.6,1589.2,12.65066]
[1673980786281,3.11662407,1589.5,1589.2,0.066]
[1673980786488,3.11662407,1589.4,1589.1,0.4721]
[1673980786699,9.71999648,1589.4,1589.1,0.4721]
[1673980787039,9.78599648,1589.4,1589.1,0.4721]
[1673980787609,0.066,1589.4,1589.1,13.05784]
[1673980787940,0.472,1589.5,1589.1,13.12384]
[1673980788103,0.472,1589.6,1589.1,13.12384]
[1673980788276,4.41337307,1589.6,1589.1,19.41671]
[1673980788491,3.11662407,1589.6,1589.1,20.84171]
[1673980789139,9.40806407,1589.5,1589.1,6.83097]
[1673980789364,3.11662407,1589.4,1589.1,0.5381]
[1673980789576,3.11662407,1589.4,1589.1,0.4721]
[1673980790207,10.98486348,1589.4,1589.1,0.4721]
[1673980790382,11.05086348,1589.4,1589.1,0.4721]
[1673980791274,4.75918348,1589.4,1589.1,0.4721]
[1673980791489,4.69318348,1589.4,1589.1,0.4721]
[1673980791742,10.98492348,1589.4,1589.1,0.4721]
[1673980791959,11.05092348,1589.4,1589.1,0.4721]
[1673980793434,4.22171642,1589.3,1589.1,0.4721]
[1673980793651,3.11662407,1589.2,1589.1,0.4721]
[1673980793863,17.12656407,1589.2,1589.1,0.4721]
[1673980794171,17.19256407,1589.2,1589.1,0.4721]
[1673980794613,23.48503407,1589.2,1589.1,0.0001]
[1673980794932,27.04535371,1589.2,1588.6,6.29482]
[1673980795086,27.04535371,1589.2,1588.6,6.36082]
[1673980795087,4.53862407,1589.1,1588.6,6.36082]
[1673980795296,9.41006407,1589.0,1588.6,12.6555]
[1673980795555,3.11662407,1588.9,1588.6,12.6555]
[1673980796094,0.066,1589.0,1588.6,18.95035]
[1673980796240,3.11662407,1589.0,1588.6,18.95035]
[1673980796450,0.066,1589.1,1588.6,22.90898376]
[1673980796712,3.11662407,1589.1,1588.6,22.90898376]
[1673980796931,9.40950407,1589.1,1588.6,22.90898376]
[1673980797082,9.40950407,1589.1,1588.6,12.6555]
[1673980797083,3.11662407,1589.0,1588.6,12.6555]
[1673980797292,3.11662407,1588.9,1588.6,6.36068]
[1673980799500,9.41031407,1588.9,1588.6,0.066]
[1673980799709,11.68264248,1588.9,1588.5,20.53607757]
[1673980800165,17.97633248,1588.9,1588.5,6.52198757]
[1673980800447,1.79763325,1588.8,1588.5,0.22710757]
[1673980800652,1.79763325,1588.8,1588.5,12.75155757]
[1673980800869,17.97633248,1588.9,1588.5,12.81755757]
[1673980801807,17.97633248,1588.9,1588.5,6.52231757]
[1673980802577,11.68264248,1588.9,1588.5,12.81755757]
[1673980802794,10.01720486,1588.9,1588.5,19.11279757]
[1673980804447,16.31101486,1588.9,1588.5,12.81755757]
[1673980804644,6.29445,1588.7,1588.5,0.22710757]
[1673980804859,3.11662407,1588.6,1588.5,0.16110757]
[1673980805117,0.066,1588.7,1588.6,2.49806648]
[1673980805323,0.93962347,1589.4,1589.2,0.87664921]
[1673980805648,0.09396235,1589.3,1589.2,0.87664921]
[1673980805887,0.472,1589.5,1589.2,7.16911921]
[1673980806055,12.38792347,1589.6,1589.2,13.52758921]
[1673980806278,11.4483,1589.6,1589.2,14.79258921]
[1673980806433,10.9763,1589.6,1589.2,0.94264921]
[1673980806643,0.472,1589.5,1589.2,0.87664921]
[1673980807018,1.265,1589.3,1589.2,0.87664921]
[1673980807234,5.38162407,1589.3,1589.2,0.87664921]
[1673980807534,17.50376407,1589.3,1589.2,0.87664921]
[1673980808350,18.44338754,1589.3,1589.2,0.87664921]
[1673980808583,17.50376407,1589.3,1589.2,0.87664921]
[1673980808782,21.18382768,1589.3,1589.2,0.87664921]
[1673980808995,20.24420421,1589.3,1589.2,0.87664921]
[1673980809184,24.18382768,1589.3,1589.2,0.87664921]
[1673980809398,24.6582681,1589.3,1588.7,3.33030829]
[1673980809681,1.265,1588.9,1588.7,3.26430829]
[1673980809852,3.24312407,1588.8,1588.7,3.26430829]
[1673980810917,0.5382,1588.9,1588.7,3.26430829]
[1673980811064,3.11662407,1588.9,1588.7,3.26430829]
[1673980811471,0.5381,1589.0,1588.7,3.26430829]
[1673980811740,3.58872407,1589.0,1588.7,3.26430829]
[1673980812120,3.11662407,1589.0,1588.7,3.26430829]
[1673980812379,3.11662407,1589.0,1588.7,9.55866829]
[1673980812571,3.11662407,1589.0,1588.7,9.62466829]
[1673980812737,0.5381,1589.1,1588.7,15.91911829]
[1673980812942,3.58872407,1589.1,1588.7,18.39030677]
[1673980813210,10.2907,1589.2,1588.7,18.39030677]
[1673980813530,13.40732407,1589.2,1588.9,6.29358]
[1673980813698,3.18262407,1589.2,1588.9,6.35958]
[1673980813912,3.11662407,1589.2,1588.9,12.65324]
[1673980814123,0.066,1589.3,1588.9,14.54856512]
[1673980814345,18.16363482,1589.4,1588.9,14.54856512]
[1673980814663,21.28025889,1589.4,1588.9,14.54856512]
[1673980815616,21.28025889,1589.4,1588.9,20.84222512]
[1673980815993,26.12695043,1589.4,1588.9,20.84222512]
[1673980816144,0.066,1589.4,1589.0,0.00629039]
[1673980816337,1.00613482,1589.5,1589.1,18.87837]
[1673980816546,0.066,1589.6,1589.2,3.152837]
[1673980816758,11.83843482,1589.7,1589.3,18.87597]
[1673980816759,1.00613482,1589.7,1589.3,18.87597]
[1673980817112,18.90733482,1589.8,1589.3,18.94197]
[1673980817423,1.00613482,1589.8,1589.4,0.1989]
[1673980817598,0.94013482,1589.8,1589.5,18.8736]
[1673980817811,0.94013482,1589.8,1589.6,1.20538225]
[1673980818159,0.94013482,1589.8,1589.6,13.78684225]
[1673980818381,0.94013482,1589.9,1589.6,13.85284225]
[1673980819467,31.09026808,1590.0,1589.6,15.11784225]
[1673980819468,1.00613482,1590.0,1589.6,15.11784225]
[1673980819680,2.35032094,1590.1,1589.6,15.11784225]
[1673980819935,2.35032094,1590.1,1589.7,1.51178422]
[1673980820151,2.35032094,1590.1,1589.8,18.87013]
[1673980820152,0.94013482,1590.1,1589.8,18.87013]
[1673980820362,0.94013482,1590.1,1589.8,18.93613]
[1673980820739,0.94013482,1590.1,1589.8,12.64604]
[1673980821185,0.94013482,1590.1,1589.8,0.066]
[1673980821531,2.35032094,1590.1,1589.8,6.29006]
[1673980821674,2.35032094,1590.1,1589.8,6.35606]
[1673980822142,0.94013482,1590.1,1589.8,6.35606]
[1673980822359,0.94013482,1590.1,1589.8,12.64615]
[1673980822510,0.94013482,1590.1,1589.8,12.49615]
[1673980823309,4.05675889,1590.1,1589.8,0.066]
[1673980823616,0.40567589,1590.0,1589.7,6.35627]
[1673980823836,11.82189501,1590.1,1589.7,6.35627]
[1673980824646,11.82189501,1590.1,1589.7,12.64676]
[1673980824647,5.53294501,1590.1,1589.7,12.64676]
[1673980824876,4.12275889,1590.1,1589.7,12.64676]
[1673980825113,3.11662407,1590.1,1589.7,18.93725]
[1673980825323,1.00613482,1590.2,1589.7,18.93725]
[1673980825491,11.75548501,1590.2,1589.7,20.830975]
[1673980825684,0.94013482,1590.1,1589.7,20.830975]
[1673980825890,10.34571889,1590.1,1589.7,6.35627]
[1673980826161,10.41171889,1590.1,1589.7,6.35627]
[1673980826742,10.41171889,1590.1,1589.7,12.64676]
[1673980826944,9.47158407,1590.1,1589.7,18.93725]
[1673980827174,3.18262407,1590.1,1589.7,18.93725]
[1673980827379,8.70486094,1590.2,1589.7,20.830975]
[1673980827590,10.41129889,1590.2,1589.7,20.830975]
[1673980827843,4.12275889,1590.2,1589.7,20.830975]
[1673980827998,4.05675889,1590.2,1589.7,20.830975]
[1673980828896,0.94013482,1590.2,1589.8,3.0]
[1673980829083,0.066,1590.3,1590.0,1.265]
[1673980829298,7.29354482,1590.5,1590.1,12.57782]
[1673980829481,3.11662407,1590.4,1590.1,0.066]
[1673980829691,9.40474407,1590.3,1590.0,6.49621]
[1673980829901,9.47074407,1590.3,1590.0,0.066]
[1673980830146,15.75886407,1590.3,1589.9,12.64524]
[1673980830346,18.13049841,1590.3,1589.9,6.35562]
[1673980831684,19.07063323,1590.3,1589.9,6.35562]
[1673980832160,18.13049841,1590.3,1589.9,6.35562]
[1673980832312,3.18262407,1590.3,1589.9,18.93502]
[1673980832527,9.40475407,1590.3,1589.9,18.93502]
[1673980832731,9.47075407,1590.3,1589.9,18.93502]
[1673980832959,6.35413,1590.3,1589.9,18.93502]
[1673980833165,3.18262407,1590.3,1589.9,0.066]
[1673980833380,21.98103407,1590.3,1589.8,12.64581]
[1673980833600,22.04703407,1590.3,1589.9,6.28968]
[1673980833908,22.04703407,1590.3,1589.9,6.35568]
[1673980834262,3.11662407,1590.2,1589.9,6.35568]
[1673980834481,16.00610648,1590.1,1589.9,0.066]
[1673980834804,9.78319648,1590.1,1589.7,18.93695]
[1673980835703,16.07210648,1590.1,1589.7,12.64655]
[1673980835919,1.60721065,1590.0,1589.7,12.64655]
[1673980837612,3.11662407,1589.9,1589.7,0.066]
[1673980837826,9.40648407,1589.9,1589.5,12.84941]
[1673980838155,9.47248407,1589.9,1589.5,12.84941]
[1673980838961,25.97521,1590.1,1589.5,14.763496]
[1673980839194,0.066,1590.1,1589.6,7.11662407]
[1673980839363,13.15342094,1590.6,1590.0,1.265]
[1673980839567,10.8031,1590.6,1590.1,18.93177]
[1673980839778,33.36205609,1590.6,1590.1,0.132]
[1673980839988,34.30219091,1590.6,1590.1,0.066]
[1673980840251,33.36205609,1590.6,1590.1,0.066]
[1673980841205,34.62305609,1590.6,1590.1,0.066]
[1673980841982,34.62305609,1590.6,1590.1,0.016]
[1673980842251,6.2878,1590.4,1590.1,0.016]
[1673980842461,3.11662407,1590.3,1590.1,0.016]
[1673980842621,6.3538,1590.4,1590.1,18.88272]
[1673980842622,0.066,1590.4,1590.1,18.88272]
[1673980842977,10.8031,1590.6,1590.1,18.94872]
[1673980843150,13.91972407,1590.6,1590.3,18.86415]
[1673980843363,0.066,1590.6,1590.3,18.93015]
[1673980843617,13.56565912,1590.9,1590.3,18.93015]
[1673980843826,3.11662407,1590.8,1590.3,18.93015]
[1673980844041,3.58822407,1590.8,1590.3,18.93015]
[1673980844257,3.58822407,1590.8,1590.3,20.69308785]
[1673980844258,5.04461239,1590.8,1590.3,20.69308785]
[1673980844421,3.65422407,1590.8,1590.3,20.69308785]
[1673980844639,3.11662407,1590.8,1590.3,20.69308785]
[1673980844847,3.11662407,1590.8,1590.3,21.94808785]
[1673980845424,11.44725912,1590.9,1590.3,21.94808785]
[1673980845813,11.44725912,1590.9,1590.4,1.0]
[1673980846022,0.09825912,1590.9,1590.7,1.259]
[1673980846232,0.03225912,1590.9,1590.8,12.57228]
[1673980846437,0.03225912,1590.9,1590.8,12.63828]
[1673980847013,0.4715,1591.2,1590.8,12.63828]
[1673980847166,10.2516,1591.3,1590.8,12.63828]
[1673980847167,0.066,1591.3,1590.8,14.53302173]
[1673980847378,9.87313482,1591.6,1590.9,2.70730217]
[1673980847590,0.066,1591.6,1591.0,12.57038]
[1673980847908,3.58802407,1591.5,1591.0,0.066]
[1673980848136,9.40043407,1591.4,1590.9,0.066]
[1673980848372,15.68539407,1591.3,1590.8,0.066]
[1673980848549,1.56853941,1591.2,1590.7,6.28653]
[1673980848734,1.56853941,1591.2,1590.7,6.35253]
[1673980848944,0.4715,1591.1,1590.7,12.63907]
[1673980849198,1.56853941,1591.2,1590.8,1.258]
[1673980849199,0.4715,1591.2,1590.8,1.258]
[1673980849581,0.4714,1591.4,1590.9,18.85706]
[1673980849842,1.55077,1591.4,1590.9,18.92306]
[1673980849994,0.4714,1591.4,1590.9,20.18806]
[1673980850854,0.4714,1591.4,1590.9,6.35167]
[1673980850855,3.11662407,1591.3,1590.9,6.35167]
[1673980851605,0.5374,1591.4,1590.9,12.63742]
[1673980851822,1.4714,1591.4,1590.9,12.63742]
[1673980852010,3.11662407,1591.3,1590.9,0.066]
[1673980852222,0.31166241,1591.2,1590.8,13.90302]
[1673980852575,1.0,1591.1,1590.8,6.3519]
[1673980852750,10.25038648,1591.2,1590.8,0.066]
[1673980852935,10.25038648,1591.2,1590.7,6.35225]
[1673980853150,1.02503865,1591.1,1590.7,12.63879]
[1673980853419,0.84916241,1591.2,1590.7,12.63879]
[1673980853652,0.5374,1591.4,1590.8,3.11662407]
[1673980853782,2.5916865,1591.7,1590.9,4.37062407]
[1673980854127,11.99091057,1591.7,1590.9,29.51261407]
[1673980854347,11.99091057,1591.7,1590.9,29.57861407]
[1673980854348,0.4714,1591.6,1590.9,29.57861407]
[1673980854556,1.4714,1591.6,1591.1,18.85421]
[1673980854916,10.66518407,1591.5,1591.1,0.066]